Workbook

Sheet Data input and assessment
A1: DUE DILIGENCE FINANCIAL ASSESSMENT OF PV MINI-GRIDS
A3: DATA ENTRY
A4: Data input fields (data from developer) | C4: For detailed calculation see worksheets (tabs below): 1 Demand households, 2 Demand MSMEs, others,
A5: Data input either directly, or from sheets 1, 2, 3, 4 | C5: 3 Losses, 4 Other supporting data. The respective data is transferred to this sheet.
B6: CTRL + Z or | C6: Changing input: return to previous data first
A7: All other data are generated by formulae
A8: Key parameters | B8: 2356
A9: Data supported by benchmark, acceptable | B9: 12
A10: Data suspiciously low (quality issue?) or high | B10: 34
A11: Data very low or very high, need clarification | B11: 56 | C11: Red cells might also hint to mistyping.
A12: Additional info, comments for consideration | B12: italics
A13: More comments are visible when the cursor is on cells with a red triangle in the top right corner. See here….
A15: Section | B15: Contents, short description
A16: Demand | B16: Electricity demand in location
A17: Configuration | B17: Size of PV array and battery capacity
A18: Investment
A19: - Site development | B19: Costs in Naira, $, cost assessment, benchmarks
A20: - Generation | B20: Panels (array) and inverters, costs in Naira, $, cost assessment, benchmarks
A21: - Storage | B21: Batteries, related electronic equipment, costs in Naira, $, cost assessment, benchmarks
A22: - Distribution | B22: Poles, lines, and connections, costs in Naira, $, cost assessment, benchmarks
A23: - Others | B23: Project development costs in Naira, $, cost assessment
A24: Investment summary | B24: Overall investment assessment
A25: Capital cost | B25: Depreciation and cost of funds (expected Return on Investment, RoI) simulation
A26: Income projection | B26: Cash flow before debt service based on electricity tariff and operational cost simulation, income and cost per kWh
A27: Financing | B27: Sources and cost of finance simulation
A28: Cash flow years 1 - 15 | B28: Start-up simulation, battery replacement simulation, inflation rate simulation
A29: Government subsidies and grants | B29: Investment cost financing of PV mini-grids based on Electricity Vision 30:30:30
A30: Benchmark baselines | B30: Data on benchmark adjustments for mini-grids < 100 kW
A32: DEMAND
A33: Demand = consumption
A34: Details transferred from sheet tabs 1 Demand households, 2 Demand MSMEs, others
A35: Alternatively, data may be entered here directly.
D36: Group | E36: Average
D37: demand | E37: per customer | F37: Benchmark | G37: Demand
A38: Customer groups | B38: Potential | C38: Committed | D38: kWh/day | E38: kWh/day | F38: kWh/day | G38: acc. to group
A39: Households | B39: ='1 Demand households'!C12 -> 500 | C39: ='1 Demand households'!H62 -> 647 | D39: ='1 Demand households'!I62 -> 168.81 | E39: =D39/C39 -> 0.2609119011 | F39: 0.5 - 0.7 | G39: =D39/D$43 -> 0.6017967274
A40: Commercial enterprises (MSMEs) | B40: ='1 Demand households'!C14 -> 25 | C40: ='2 Demand MSMEs, others'!A48 -> 11 | D40: ='2 Demand MSMEs, others'!F49 -> 29.5 | E40: =D40/C40 -> 2.681818182 | F40: 1 - 3 | G40: =D40/D$43 -> 0.1051655912
A41: Productive enterprises (MSMEs) | B41: ='1 Demand households'!C15 -> 20 | C41: ='2 Demand MSMEs, others'!A68 -> 11 | D41: ='2 Demand MSMEs, others'!F69 -> 79.5 | E41: =D41/C41 -> 7.227272727 | F41: 5 - 15 | G41: 0.2834123561 | H41: =IF(AND(G41>0.5,(C41/C43)<0.07),"High dependance on few MSMEs",IF(G41>0.5,"High dependance on MSMEs","")) -> 
A42: Public users | B42: ='1 Demand households'!C16 -> 6 | C42: ='2 Demand MSMEs, others'!A88 -> 6 | D42: ='2 Demand MSMEs, others'!F89 -> 2.7 | E42: =D42/C42 -> 0.45 | F42: 1 - 5 | G42: 0.0096253253
A43: Total Demand, kWh/day | B43: =SUM(B39:B42) -> 551 | C43: =SUM(C39:C42) -> 675 | D43: =SUM(D39:D42) -> 280.51 | E43: =D43/C43 -> 0.4155703704 | F43: > 0.5 | G43: 1
C44: =IF(OR(C39>B39,C40>B40,C41>B41,C42>B42),"Number of committed customers must be smaller than potential.","") -> Number of committed customers must be smaller than potential.
A45: Additional info | F45: Benchmark
A46: Demand of the largest productive MSMEs (of total %, in kWh/day) | C46: =D46/D43 -> 0.2745000178 | D46: =SUM('2 Demand MSMEs, others'!F58:F66)/30 -> 77 | F46: < 30%
A47: Estimated growth potential | B47: Households: | C47: =(B39-C39)/C39 -> -0.227202473 | F47: > 35%
B48: MSMEs, others: | C48: =(SUM(B40:B42)-SUM(C40:C42))/SUM(C40:C42) -> 0.8214285714 | F48: > 35%
A50: CONFIGURATION
A53: Irradiation ("light", "sunshine"), annual | B53: ='3 Losses'!E56 -> 1850 | C53: kWh/m2 | F53: Verification: see map -->
B54: =IF(OR(B53<1300,B53>2300),"Review input data!","") -> 
A55: Daytime electricity demand from 7 am to 5 pm | B55: 105 | C55: =IF(B55>0.8*D43,"Check input","kWh/day ") -> kWh/day | D55: =B55/D43 -> 0.3743182061 | E55: daily demand)
A57: Technical, other electricity losses | B57: kWh input | C57: Losses | D57: kWh demand | F57: Benchmark
A58: For details see "3 Losses" | F58: for losses
A59: Direct feed, daytime | B59: =D59/(1-C59) -> 153.8461538 | C59: ='3 Losses'!E52 -> 0.3175 | D59: =IF(B55>0,B55,D55/100*D43) -> 105 | E59: =IF(OR(C59<0.28,C59>0.55), " out of range!","") ->  | F59: 30%-50%
A60: Battery feed, night | B60: =D60/C60 -> 359.5595391 | C60: ='3 Losses'!F52 -> 0.488125 | D60: =D43-D59 -> 175.51 | E60: =IF(OR(C60<0.35,C60>0.65), " out of range!","") ->  | F60: 40%-60%
A61: Total feed | B61: =SUM(B59:B60) -> 513.4056929 | D61: =SUM(D59:D60) -> 280.51
C62: =IF(C59<25%," Very optimistic!","") -> 
F63: Benchmark
A64: Multiplier for seasonal deficits (see sheet "3 Losses") | B64: ='3 Losses'!E58 -> 1.276698527 | C64: =IF(OR(B64<1.1,B64>1.6),"Review input!","") ->  | F64: 1.20 - 1.60
A65: PV array power required, approximately | B65: =IF(B64<1.1,1.1*B61/(B53/365),B64*B61/(B53/365)) -> 129.3213332 | C65: kWp
A67: PV array power proposed by developer | B67: 90.6 | C67: kWp | D67: =IF(B67<0.9*B65,"May be > too small < for the present demand.", IF(B67>1.1*B65,"May be > too large < for the present demand.", "Approximately according to present demand.")) -> May be > too small < for the present demand.
A68: Difference | B68: =(B67-B65)/B65 -> -0.2994195332 | D68: =+'4 Other supporting data'!D19 -> Panels fit probably into one 20 ft container
A70: Battery bank configuration
A71: - Current voltage | B71: 6 | C71: V
A72: - Nameplate capacity @ 10-hour rate ("C10") | B72: 820 | C72: Ah | H72: 6 V(olt)
A73: - Batteries | B73: 60 | C73: units | D73: Useable energy | E73: 0.6 | F73: =E73*B74 -> 177.12
A74: Nameplate energy | B74: =B71*B72*B73/1000 -> 295.2 | C74: kWh | D74: Weight of batteries , approx. | F74: =INT(B74*'4 Other supporting data'!B29/1000+0.5)&" ton" -> 12 ton | H74: C10 =
H75: 820 AH @ 10 HR
A76: Assessment of battery bank configuration | F76: Benchmark
A77: Ratio 1: Nameplate energy / PV array power | B77: =B74/B67 -> 3.258278146 | C77: =IF(B77<3,"Limitations after consecutive cloudy days",IF(B77>5,"High investment for periods of cloudy days","")) ->  | F77: 3.0 - 4.5
A78: Ratio 2: Battery energy / night energy demand | B78: =B74*E73/D60 -> 1.009173266 | C78: =IF(B78<2.3," Limitations after consecutive cloudy days",IF(B78>4.5,"High investment for periods of cloudy days","")) -> Limitations after consecutive cloudy days | F78: 2.3 - 3.5 | H78: Battery label (producer: Trojan, USA)
A81: INVESTMENT | M81: Local/Import component
A83: Exchange rate Naira (NGN) / USD ($) | B83: 365
A86: SITE DEVELOPMENT
F88: Benchmark
A89: Land area | B89: 1800 | C89: m2 | D89: =IF(B89<0.75*F89,"rather tiny",IF(B89<0.85*F89,"small",IF(B89>3*F89,"very large", IF(B89>1.5*F89,"rather large","appropriate")))) -> appropriate | F89: =15*B67 -> 1359 | G89: m2
B91: Naira | C91: $ | D91: $/kWp | F91: Benchmark | M91: Local component
M92: (estimate) | N92: Naira
A93: Land use right, compensation, fees | B93: 500000 | C93: =B93/$B$83 -> 1369.863014 | D93: =C93/B$67 -> 15.11990081 | E93: =IF(D93>100,"Review recommended","") ->  | F93: - . - | H93: Power house for batteries | M93: 1 | N93: =M93*B93 -> 500000
A94: Land development, fence, power house, building permits | B94: 4200000 | C94: =B94/$B$83 -> 11506.84932 | D94: =C94/B$67 -> 127.0071668 | E94: =IF(D94>160,"Review all costs!","") ->  | F94: 80 - 120 | H94: and electronic equipment, fence | M94: 1 | N94: =M94*B94 -> 4200000
A96: Total site development | B96: =SUM(B93:B94) -> 4700000 | C96: =SUM(C93:C94) -> 12876.71233 | D96: =SUM(D93:D94) -> 142.1270676 | F96: < 150 | I96: Site development | J96: ="$ "&INT(D96+0.5)&" /kWp" -> $ 142 /kWp | K96: =C96/C172 -> 0.03243616287
A100: GENERATION | H100: (All pictures from Bisanti/Niger State, GVE)
B101: Naira | C101: $ | D101: $/kWp | F101: Benchmark
A102: Solar panels (array)
A103: Panels, cif (cost, insurance, freight) | B103: 15250000 | C103: =B103/$B$83 -> 41780.82192 | D103: =C103/B67 -> 461.1569748 | E103: =IF(D103<350," Quality?",IF(D103>600," not competitive","")) ->  | F103: 350 - 500 | M103: 0 | N103: =M103*B103 -> 0
A104: Customs clearance, port fees | B104: 2600000 | C104: =B104/$B$83 -> 7123.287671 | D104: =C104/$B$67 -> 78.62348423 | E104: =IF(D104>110," Tax on panels?","") ->  | F104: 50 - 100 | M104: 1 | N104: =M104*B104 -> 2600000
A105: Land transport to destination, others | B105: 1900000 | C105: =B105/$B$83 -> 5205.479452 | D105: =C105/$B$67 -> 57.45562309 | E105: =IF(D105>50," Check destination","") -> Check destination | F105: 20 - 50 | H105: Solar/photovoltaic panels (PV array) | M105: 1 | N105: =M105*B105 -> 1900000
A107: Mounting structures
A108: incl. piping to power house, transport, labour | B108: 6100000 | C108: =B108/$B$83 -> 16712.32877 | D108: =C108/B$67 -> 184.4627899 | E108: =IF(D108<80," Quality?","") ->  | F108: 100 - 160 | M108: 1 | N108: =M108*B108 -> 6100000
A110: Solar inverters
A111: Inverters, cif (incl. cost, insurance, freight) | B111: 3400000 | C111: =B111/$B$83 -> 9315.068493 | D111: =C111/B$67 -> 102.8153255 | F111: 100 - 150 | H111: Mounting structures | M111: 0 | N111: =M111*B111 -> 0
A112: Customs clearance, land transport | B112: 1900000 | C112: =B112/$B$83 -> 5205.479452 | D112: =C112/B$67 -> 57.45562309 | E112: =IF(D112>65," Import tax?","") ->  | F112: 20 - 50 | M112: 1 | N112: =M112*B112 -> 1900000
A114: Electronic equipment, tools, etc. (balance of system, BOS)
A115: AC distribution box, cables, circuit breakers, etc. | B115: 6100000 | C115: =B115/$B$83 -> 16712.32877 | D115: =C115/B$67 -> 184.4627899 | F115: 140 - 200 | M115: 0.1 | N115: =M115*B115 -> 610000
A117: Other costs related to electricity generating, misc. | B117: 1000000 | C117: =B117/$B$83 -> 2739.726027 | D117: =C117/B67 -> 30.23980163 | F117: - . - | H117: Electronic equipment (also for remote control) | M117: 1 | N117: =M117*B117 -> 1000000
A118: =IF(B117>0.08*B119,"Please specify","") ->  | G118: =IF(B117>0.05*SUM(B102:B116),"... ","") -> 
A119: Total generation | B119: =SUM(B102:B118) -> 38250000 | C119: =B119/$B$83 -> 104794.5205 | D119: =SUM(D103:D118) -> 1156.672412 | F119: 950-1,200 | I119: Electricity generation | J119: ="$ "&INT(D119+0.5)&" /kWp" -> $ 1157 /kWp | K119: =C119/C$172 -> 0.2639751553
A123: STORAGE
A125: Applicable for lead batteries with about 50% to 60% maximum discharge.
B127: Naira | C127: $ | D127: $/kWh battery | F127: Benchmark
A128: Batteries, cif
A129: open wet/flooded lead acid (OPzS) | B129: 15000000 | C129: =B129/$B$83 -> 41095.89041 | D129: =C129/B$74 -> 139.2137209 | F129: 100 - 150 | M129: 0 | N129: =M129*B129 -> 0
A130: or: closed gel type (OPzV, SLA, AGM) | C130: =B130/$B$83 -> 0 | D130: =C130/B$74 -> 0 | F130: 130 - 200 | M130: 0 | N130: =M130*B130 -> 0
A131: =IF(AND(B129>0,B130>0),"Choose one battery type only!","") ->  | H131: Battery bank (open wet/flooded)
A132: Customs clearance, transport to site | B132: 4200000 | C132: =B132/$B$83 -> 11506.84932 | D132: =C132/B$74 -> 38.97984185 | E132: =IF(D132>50," Import tax?","") ->  | F132: 20 - 50 | M132: 1 | N132: =M132*B132 -> 4200000
A134: Electronic equipment for battery management
A135: Inverters or converters, interface, etc., cif | B135: 12600000 | C135: =B135/$B$83 -> 34520.54795 | D135: =C135/B$74 -> 116.9395256 | F135: 80 - 110 | M135: 0 | N135: =M135*B135 -> 0
A136: Customs clearance, transport to site, others | B136: 4800000 | C136: =B136/$B$83 -> 13150.68493 | D136: =C136/B$74 -> 44.54839069 | F136: 30 - 70 | M136: 1 | N136: =M136*B136 -> 4800000
C137: =B137/$B$83 -> 0
A138: Other costs related to storage/battery, racks, misc. | B138: 900000 | C138: =B138/$B$83 -> 2465.753425 | D138: =C138/B74 -> 8.352823254 | F138: - . - | H138: Electronic equipment at the wall | M138: 1 | N138: =M138*B138 -> 900000
A139: =IF(B138>0.08*B140,"Please specify","") -> 
A140: Total storage | B140: =SUM(B129:B139) -> 37500000 | C140: =SUM(C129:C139) -> 102739.726 | D140: =SUM(D129:D139) -> 348.0343023 | F140: 250 - 400 | I140: Storage | J140: ="$ "&INT(C140/B67+0.5)&" /kWp" -> $ 1134 /kWp | K140: =C140/C172 -> 0.2587991718
A144: DISTRIBUTION
F145: Benchmark
A146: Layout
A147: Distance: power house - settlement centre (m) | B147: 600 | C147: =IF(B147<150," mistyping?","") ->  | D147: =IF(C147=" mistyping?","No","") ->  | E147: =IF(D147="No",200,B147) -> 600 | F147: < 500
A148: Total length of distribution network (m) | B148: 1800 | D148: m/customer: | E148: =B149/SUM(C39:C42) -> 7.555555556 | F148: < 20
A149: Total length of cables or power lines (m) | B149: 5100 | D149: m between poles: | E149: =B148/B150 -> 22.5 | F149: 30 - 50 | H149: Pole, power lines, insulators,
A150: Number of electric poles | B150: 80 | D150: customers /pole: | E150: =SUM(C39:C42)/B150 -> 8.4375 | F150: > 3 | H150: fixtures, street lights
B152: Naira | C152: $ | E152: $ | F152: Benchmark
A154: Poles, transport, foundation, crane, labour | B154: 5500000 | C154: =B154/B$83 -> 15068.49315 | D154: per pole: | E154: =C154/B150 -> 188.3561644 | F154: < 170 | M154: 1 | N154: =M154*B154 -> 5500000
A155: Power lines (cables), transport, accessories, labour | B155: 23500000 | C155: =B155/B$83 -> 64383.56164 | D155: per meter: | E155: =C155/B149 -> 12.62422777 | F155: 10 - 15 | M155: 0.5 | N155: =M155*B155 -> 11750000
A156: Customer connection: service line, equipment, labour | B156: 16200000 | C156: =B156/B$83 -> 44383.56164 | D156: per customer: | E156: =C156/SUM(C39:C42) -> 65.75342466 | F156: < 150 | M156: 0.5 | N156: =M156*B156 -> 8100000
A158: Other costs directly related to distribution, misc. | B158: 1600000 | C158: =B158/B$83 -> 4383.561644 | F158: - . - | H158: Tools for prepayment meter, | M158: 1 | N158: =M158*B158 -> 1600000
A159: =IF(B158>0.08*B160,"Please specify","") ->  | H159: Customer Interface Unit (CIU)
A160: Total distribution | B160: =SUM(B154:B159) -> 46800000 | C160: =B160/B$83 -> 128219.1781 | D160: per customer: | E160: =C160/C43 -> 189.9543379 | F160: < 400 | I160: Distribution | J160: ="$ "&INT(C160/B67+0.5)&" /kWp" -> $ 1415 /kWp | K160: =C160/C172 -> 0.3229813665
E161: =IF(F185/3.5>E160,"Many customers but low demand.","") -> Many customers but low demand.
A163: OTHERS
A164: Planning, administration, fees | B164: Naira | C164: $ | D164: in % of Grand | F164: Benchmark
D165: Total Investment
A166: Project preparation, (pre-)feasibility, survey, design | B166: 4000000 | C166: =B166/B$83 -> 10958.90411 | D166: =C166/C172 -> 0.027605245 | F166: - . - | M166: 1 | N166: =M166*B166 -> 4000000
A167: Authorizations, regulatory fees, studies (e.g., EIA), approvals | B167: 5100000 | C167: =B167/B$83 -> 13972.60274 | D167: =C167/C172 -> 0.03519668737 | F167: - . - | M167: 1 | N167: 5100000
A168: Project management, supervision, travel, labour | B168: 8550000 | C168: =B168/B$83 -> 23424.65753 | D168: =C168/C172 -> 0.05900621118 | F168: - . - | M168: 1 | N168: =M168*B168 -> 8550000
A170: Total other costs (management, fees, travel, etc.) | B170: =SUM(B166:B169) -> 17650000 | C170: =SUM(C166:C169) -> 48356.16438 | D170: =SUM(D166:D169) -> 0.1218081435 | F170: 8% - 15% | I170: Other costs | J170: ="$ "&INT((C168+C166+C167)/B67+0.5)&" /kWp" -> $ 534 /kWp | K170: =C170/C172 -> 0.1218081435
A172: GRAND TOTAL INVESTMENT | B172: =B160+B170+B140+B119+B96 -> 144900000 | C172: =B172/B$83 -> 396986.3014 | I172: GRAND TOTAL | J172: ="$ "&INT(C172/B67+0.5)&" /kWp" -> $ 4382 /kWp | K172: 1
A174: Local components, approximately | B174: =SUM(N93:N171) -> 73310000 | C174: =C172*D175 -> 196136.9863 | D174: =B174/B$172 -> 0.5059351277
A175: Imported components, approximately | B175: =B172-B174 -> 71590000 | C175: =C172-C174 -> 200849.3151 | D175: =B175/B$172 -> 0.4940648723
A176: Imported solar panels, electronic equipment, batteries | B176: =B103+B111+0.5*B115+B129+B130+B135 -> 49300000 | C176: =B176/B83 -> 135068.4932 | D176: 0.3402346446 | E176: Based on experience, $-prices of these items decrease by 5% to 10% annually.
A179: INVESTMENT SUMMARY
C180: Naira | E180: $ | F180: Actual | G180: Benchmark | H180: $ | I180: Share | J180: Share
B181: Total | C181: per kWp | D181: per customer | E181: Total | F181: $/kWp | G181: $/kWp | H181: p. customer | I181: Actual | J181: Benchmark
A182: Site development | B182: =B96 -> 4700000 | C182: =B182/$B$67 -> 51876.37969 | D182: =B182/$C$43 -> 6962.962963 | E182: =C96 -> 12876.71233 | F182: =E182/$B$67 -> 142.1270676 | G182: 150 | H182: =E182/$C$43 -> 19.07661086 | I182: =H182/$H$187 -> 0.03243616287 | J182: =G182/G$187 -> 0.03333333333
A183: Electricity generation | B183: =B119 -> 38250000 | C183: =B183/$B$67 -> 422185.4305 | D183: =B183/$C$43 -> 56666.66667 | E183: =C119 -> 104794.5205 | F183: =E183/$B$67 -> 1156.672412 | G183: 1200 | H183: 155.2511416 | I183: =H183/$H$187 -> 0.2639751553 | J183: 0.2666666667
A184: Electricity storage | B184: =B140 -> 37500000 | C184: 413907.2848 | D184: 55555.55556 | E184: =C140 -> 102739.726 | F184: =E184/$B$67 -> 1133.992561 | G184: 1300 | H184: 152.2070015 | I184: =H184/$H$187 -> 0.2587991718 | J184: 0.2888888889
A185: Electricity distribution | B185: =B160 -> 46800000 | C185: 516556.2914 | D185: 69333.33333 | E185: =C160 -> 128219.1781 | F185: =E185/$B$67 -> 1415.222716 | G185: 1200 | H185: 189.9543379 | I185: =H185/$H$187 -> 0.3229813665 | J185: 0.2666666667
A186: Other costs (preparation, fees, management, etc.) | B186: =B170 -> 17650000 | C186: 194812.362 | D186: 26148.14815 | E186: =C170 -> 48356.16438 | F186: =E186/$B$67 -> 533.7324987 | G186: 650 | H186: 71.63876205 | I186: =H186/$H$187 -> 0.1218081435 | J186: 0.1444444444
A187: Total | B187: =SUM(B182:B186) -> 144900000 | C187: 1599337.748 | D187: 214666.6667 | E187: =SUM(E182:E186) -> 396986.3014 | F187: 4381.747256 | G187: =SUM(G182:G186) -> 4500 | H187: 588.1278539 | I187: 1 | J187: 1
A189: Overall adjusted specific investment cost assessment
A190: Investment per kWp | B190: =B172/B67 -> 1599337.748 | C190: =C172/B67 -> 4381.747256
A191: Benchmark adjusted to PV power (kWp) | C191: =G187*(1+((1-B67/100)*IF(B67>100,0.2,IF(B67>40,0.4,0.7)))) -> 4669.2
A205: CAPITAL COST
A207: Additional simulation opportunity to assess the viability of PV mini-grids by comparing the actual income with capital costs.
A209: Capital cost per kWh sold | C209: p.a. | D209: Lifetime
A210: Depreciation p.a. for batteries | C210: 0.12 | D210: =1/C210 -> 8.333333333
A211: Depreciation p.a. others | C211: 0.04 | D211: =1/C211 -> 25
A212: Expected Return on Investment (RoI) p.a. (weighted equity, grant, debt) | C212: 0.07
A214: Capital cost per kWh for | B214: Naira | C214: $
A215: - site development per kWh | B215: =B96/(365*D43)*(C212+C211) -> 5.049511091 | C215: =B215/B83 -> 0.01383427696
A216: - generation per kWh | B216: =(B119/(365*D43))*(C211+C212) -> 41.09442537 | C216: =B216/B83 -> 0.1125874668
A217: - storage per kWh (based on total sales!) | B217: =(SUM(B129:B132)/(365*D43))*(C210+C212)+(SUM(B134:B139)/(365*D43))*(C211+C212) -> 55.29068141 | C217: =B217/B83 -> 0.1514813189
A218: - distribution per kWh | B218: =B160/(D43*365)*(C211+C212) -> 50.2802381 | C218: =B218/B83 -> 0.137754077
A219: Total capital cost per kWh | B219: =SUM(B216:B218) -> 146.6653449 | C219: =SUM(C216:C218) -> 0.4018228627
A222: INCOME PROJECTION
A224: The data for the electricity tariff allow simulating the income, the data for expenses before loan service allow simulating cost and net cash flow before loan service
H225: Average per customer (Naira)
A226: Tariff (Naira) | B226: customers | C226: fixed/month | D226: per kWh | E226: Naira, p.a. | F226: Naira, p.m. | H226: Monthly bill | I226: Basic demand bill
A228: Households | B228: =C39 -> 647 | C228: 1000 | D228: 200 | E228: =B228*C228*12+D$39*365*D228 -> 20087130 | H228: =E228/B228/12 -> 2587.214065 | I228: ='1 Demand households'!G50*30/1000*D228+C228 -> 1900
A229: Commercial enterprises (MSMEs) | B229: =C40 -> 11 | C229: =C228 -> 1000 | D229: =D228 -> 200 | E229: =B229*C229*12+D40*365*D229 -> 2285500 | H229: =E229/B229/12 -> 17314.39394
A230: Productive enterprises (MSMEs) | B230: =C41 -> 11 | C230: =C228 -> 1000 | D230: =D228 -> 200 | E230: =B230*C230*12+D41*365*D230 -> 5935500 | H230: =E230/B230/12 -> 44965.90909
A231: Public users | B231: =C42 -> 6 | C231: =C228 -> 1000 | D231: =D228 -> 200 | E231: =B231*C231*12+D42*365*D231 -> 269100 | H231: =E231/B231/12 -> 3737.5
A232: Gross Revenues per year (month) | E232: =SUM(E228:E231) -> 28577230 | F232: =E232/12 -> 2381435.833
A235: Expenses before loan service | B235: p.a. | E235: p.a. | H235: Cost | I235: Naira/kWh | J235: $/kWh
A236: Smart meter royalty, collection fees | B236: 0.07 | C236: of gross revenues | E236: =E232*B236 -> 2000406.1 | H236: Operational cost | I236: =E245/(365*D43) -> 107.3847742 | J236: =I236/B$83 -> 0.2942048608
A237: Land use right | B237: 100000 | E237: =B237 -> 100000 | H237: Capital cost | I237: =B219 -> 146.6653449 | J237: =I237/B$83 -> 0.4018228627
A238: Local guard, daily inspection | B238: 800000 | E238: =B238 -> 800000 | H238: Total cost | I238: =SUM(I236:I237) -> 254.0501191 | J238: =I238/B$83 -> 0.6960277235
A239: Supervision visits (travel, honorarium) | B239: 250000 | C239: x visits/year | D239: 3 | E239: =B239*D239 -> 750000
A240: Management (overheads) | B240: 0.1 | C240: of gross revenues | E240: =B240*E232 -> 2857723 | H240: Income | I240: =E232/(365*D43) -> 279.1122627 | J240: =I240/B83 -> 0.7646911308
A241: Insurance | B241: 100000 | E241: =B241 -> 100000 | H241: (weighted average tariff)
A242: Others, minor repairs | B242: 100000 | E242: =B242 -> 100000
A243: Miscellaneous, contingencies | B243: 0.03 | C243: of gross revenues | E243: =B243*E232 -> 857316.9
A244: Tax, estimate, VAT 5%, WHT 5%, CSR | B244: 0.12 | C244: of gross revenues | E244: =B244*E232 -> 3429267.6
A245: Total Expenses per year (month) | E245: =SUM(E236:E244) -> 10994713.6 | F245: =E245/12 -> 916226.1333
A247: Net cash flow per year (month) b e f o r e loan service | E247: =E232-E245 -> 17582516.4 | F247: =E247/12 -> 1465209.7
A249: FINANCING
A251: The data for the fund composition allow simulating the debt and related loan service expenditures.
B252: Naira
A253: Investment | B253: =B172 -> 144900000
A254: Interest during construction, estimated | B254: 3000000
A255: Start-up cost | B255: 0
A256: Others, contingencies | B256: 0
A257: Total investment | B257: =SUM(B253:B256) -> 147900000
A260: Financing | B260: share | D260: Naira
A261: Equity 1, developer | B261: 0.15 | D261: =B261*B$257 -> 22185000
A262: Equity 2 | B262: 0.05 | D262: =B262*B$257 -> 7395000
A263: Government subsidy | B263: 0.2 | D263: =B263*B$257 -> 29580000
A264: Grant(s) | B264: 0.1 | D264: =B264*B$257 -> 14790000
A266: Debt/Loan 1 | B266: 0.4 | D266: =B$257*B266 -> 59160000
A267: - Interest rate | C267: 0.09 | E267: Naira, p.a. | F267: Naira, p.m.
A268: - Tenor (years) | C268: 10
A269: - Debt service p.a. / p.m. | E269: =12*F269 -> 8992966.53 | F269: =IF(C268<>0,PMT(C267/12,C268*12,-D266),"") -> 749413.8775
A271: Debt/Loan 2 (This is the remainder!) | B271: =1-SUM(B261:B270)-SUM(B272:B274) -> 0.1 | C271: =IF((SUM(B261:B266)+B271)<>1,"Check the input percentages!","") ->  | D271: =IF(C271<>0,B$257*B344,"") -> 14790000
A272: - Interest rate | C272: 0.2
... 61 more rows

Sheet 1 Demand households
A1: 1 Demand households
A3: DATA ENTRY
B4: Data pre-set, suggestion; data can be adjusted
B5: Direct data input required, some data are connected with the worksheet "Data input and assessment".
B6: Data calculated and connected with the worksheet "Data input and assessment"
A9: Socio-economic data
A10: Name and location of settlement | C10: < Name, LGA, State> | G10: Coordinates | H10: Nothing | J10: Easting
A11: Total population | C11: 2500
A12: No. of households | C12: 500
A13: Average members per household | C13: =IF(C12=0,"",C11/C12) -> 5 | D13: Regional data from National Bureau of Stats could serve as a benchmark to validate this value.
A14: No. of commercial enterprises | C14: 25
A15: No. of productive enterprises | C15: 20
A16: No. of public institutions | C16: 6
A17: Distance to grid, km | C17: 8
A18: Distance to all-weather road, km | C18: 6
A19: Distance to port/Lagos, km | C19: 760
A20: =IF(C18>0,"Access during rainy season","") -> Access during rainy season
A22: Major income sources, activities | J22: Satellite picture of location
A23: Major commodities
A24: commodities, products
A26: Other noteworthy facts
A27: (regulations, approvals, etc.)
A33: Residential households and projected electricity demand
A34: The following classifies the residential households into four sub-groups according to their approximate electricity demand.
A36: Sub-groups | C36: Consumption kWh/
C37: per day | D37: per year
A38: A | B38: Basic household demand | C38: =G50/1000 -> 0.15 | D38: =365*G50/1000 -> 54.75
A39: B | B39: Advanced demand | C39: =G54/1000 -> 0.55 | D39: =365*G54/1000 -> 200.75 | F39: For comparison, the average annual residential electricity consumption is about 100 kWh/capita (400-500 kWh/household).
A40: C | B40: High demand | C40: =G57/1000 -> 1.03 | D40: =365*G57/1000 -> 375.95
A41: D | B41: Very high demand | C41: =G60/1000 -> 3.43 | D41: =365*G60/1000 -> 1251.95
A43: Residential household electricity consumption / demand assessment
A45: Sub- group | B45: Electric items ("load") | C45: No. | D45: Common Watt range | E45: Selected Watt | F45: Operation hours/day | G45: Consumption Wh/day | H45: Committed households | I45: Village kWh*)/day
A46: 1 | B46: 2 | C46: 3 | D46: 4 | E46: 5 | F46: 6 | G46: 7 | H46: 8 | I46: 9
B47: Light, bulbs | C47: 4 | D47: 3 - 10 | E47: 5 | F47: 5 | G47: =+F47*E47*C47 -> 100
B48: Radio | C48: 1 | D48: 2 - 20 | E48: 5 | F48: 8 | G48: =+F48*E48*C48 -> 40
B49: Charging phone, batteries | C49: 1 | E49: 5 | F49: 2 | G49: =+F49*E49*C49 -> 10
A50: A | B50: Basic demand | G50: =SUM(G47:G49) -> 150 | H50: 500 | I50: =H50*G50/1000 -> 75
B51: Fan | C51: 1 | D51: 20 - 60 | E51: 40 | F51: 6 | G51: =+F51*E51*C51 -> 240
B52: TV LED | C52: 1 | D52: 30 - 120 | E52: 40 | F52: 4 | G52: =+F52*E52*C52 -> 160
B53: Others | G53: =+F53*E53*C53 -> 0
A54: B | B54: Advanced demand | G54: =SUM(G50:G53) -> 550 | H54: 130 | I54: =H54*G54/1000 -> 71.5
B55: Refrigerator | C55: 1 | D55: 50 - 120 | E55: 60 | F55: 8 | G55: =+F55*E55*C55 -> 480
B56: Others | G56: =+F56*E56*C56 -> 0
A57: C | B57: High demand | G57: =G55+G54+G56 -> 1030 | H57: 15 | I57: =H57*G57/1000 -> 15.45
B58: Air cond., small | C58: 1 | D58: 400 - 1,000 | E58: 600 | F58: 4 | G58: =+F58*E58*C58 -> 2400
B59: Others | G59: =+F59*E59*C59 -> 0
A60: D | B60: Very high demand | G60: =SUM(G57:G59) -> 3430 | H60: 2 | I60: =H60*G60/1000 -> 6.86
G62: Total | H62: =SUM(H47:H61) -> 647 | I62: =SUM(I47:I61) -> 168.81
A63: *) 1,000 Wh = 1 kWh
A65: Assessment: comparison of demand with national average
A66: Average demand per household | C66: =365*I62/H62 -> 95.23284389 | D66: kWh/year
A67: Average demand per capita | C67: =+C66/C13 -> 19.04656878 | D67: kWh/year
A68: National demand, average/capita | C68: 100 | D68: kWh/year | E68: Nigeria 2017
A69: In % of national average | C69: =C66/(C13*C68) -> 0.1904656878 | D69: according to average number of households (see socio-economic data above)

Sheet 2 Demand MSMEs, others
A1: 2 Demand MSMEs, others
B3: The PV developer shall support with these data on already registered customers the sale projection.
B4: Customers are separated: Commercial MSMEs, Productive MSMEs, Others.
B5: The data shall be presented for maximum nine dominant customers per sub-group plus the aggregate figure for all other customers in the respective groups.
B6: The resulting data is the projected electricity demand in kWh/day (yellow cells).
B8: Considerations, additional data on present gen-set costs and gen-set specification
B9: § Many MSMEs own a gen-set and produce electricity themselves.
B10: § Some MSMEs might have to invest in machinery when changing to grid electricity.
B11: § The risk looms that MSMEs might remain with or revert to own electricity generation. For this, consider also Columns H - S (7 - 17).
C13: Direct data input required for further processing
C14: Direct data input or accepting the pre-set data or data that the formula generates
C15: Data generated by formula and connected with the worksheet "Data input and assessment"
B17: DATA ENTRY
B18: Column | C18: Required data
B19: 1, Rows 47, 67, 87 | C19: Aggregate number of non-dominant, smaller customers
B20: 2 | C20: Name of MSME, institution; details on the maximum nine most dominant consumers, all others aggregated
B21: 3 | C21: Business, activity of the customer
B22: 4 | C22: Fuel consumption of customer's gen-set (litre per average month), data from survey
B23: 5 | C23: The gen-set efficiency is pre-set (default) at 1.5 kWh per litre fuel. An individual adjustment is possible for old and small, often idle running gen-sets (0.8 to 1.2) or new, larger (> 5 KVA) gen-sets (1.8 to 3.5). Data from survey.
B24: 6 | C24: Estimated future electricity consumption based on present fuel consumption; direct data input is possible for new enterprises or if no info about fuel consumption is available.
C25: Additional financial data for further analysis and consideration
B26: 7, Rows 36, 56, 76 | C26: Price paid per litre fuel at village level (including transport to village);
B27: 8 | C27: Expenses for service, maintenance, repair of gen-set, average per month
B28: 9 | C28: Total expenses presently for electricity or power
B29: 10, Rows 36, 56, 76 | C29: Projected kWh tariff; tariffs may differ according to customer group
B30: 11 | C30: Savings (in parenthesis: higher expenses) when using grid electricity; it is expected that in many MSMEs will have higher expenses, which they accept because of superior convenience and reliability.
B32: 12 -17 | C32: Additional gen-set data for consideration (only for the most dominant customers)
A33: C o m m e r c I a l MSMEs producing electricity for their businesses (data from individual assessment) | H33: Additional financial data for consideration | N33: Additional gen-set data for consideration
A34: # | B34: Name of MSME | C34: Business | D34: Present monthly fuel consumption | E34: Estimated gen-set efficiency | F34: Estimated monthly | H34: Fuel expenses | I34: Service maintenance repair | J34: Total gen-set expenses | K34: Projected cost of PV electricity | L34: Lower (higher) PV electricity cost/month | N34: Present gen-set specification | P34: Owner-ship | Q34: Loan finance of the gen-set | S34: Operation hours average per month
E35: kWh/litre | F35: electricity demand | H35: Fuel price ₦/litre | I35: average per month | J35: per month | K35: Tariff ₦/kWh | N35: kW | O35: KVA | P35: own / other | Q35: Y / N | R35: MM/YY final payment due
D36: Litre | E36: (range: 0.8-3.5) | F36: kWh | H36: 255 | I36: ₦ | J36: ₦ | K36: 200 | L36: ₦
A37: 1 | B37: 2 | C37: 3 | D37: 4 | E37: 5 | F37: 6 = 4 * 5 | H37: 7 | I37: 8 | J37: 9 = 7 + 8 | K37: 10 = 6*Tariff | L37: 11 = 9 - 10 | N37: 12 | O37: 13 | P37: 14 | Q37: 15 | R37: 16 | S37: 17
A38: 1 | B38: Abcd | C38: Shop with refrigerators | D38: 200 | E38: 1.5 | F38: =IF(OR(E38<0.8,E38>3.5),"<- Wrong data!",E38*D38) -> 300 | H38: =D38*H$36 -> 51000 | I38: 5000 | J38: =I38+H38 -> 56000 | K38: =$K$36*F38 -> 60000 | L38: =J38-K38 -> -4000
A39: 2 | B39: Efgh | C39: Shop | D39: 90 | E39: 1.5 | F39: =IF(OR(E39<0.8,E39>3.5),"<- Wrong data!",E39*D39) -> 135 | H39: 22950 | I39: 2000 | J39: =I39+H39 -> 24950 | K39: 27000 | L39: -2050
A40: 3 | B40: Ijkl | C40: Restaurant/Bar | D40: 60 | E40: 1.5 | F40: 90 | H40: 15300 | I40: 4000 | J40: =I40+H40 -> 19300 | K40: 18000 | L40: 1300
A41: 4 | B41: we | C41: Beauty Salon | D41: 40 | E41: 1.5 | F41: 60 | H41: 10200 | I41: 1000 | J41: =I41+H41 -> 11200 | K41: 12000 | L41: -800
A42: 5 | E42: 1.5 | F42: 0 | H42: 0 | J42: 0 | K42: 0 | L42: 0
A43: 6 | E43: 1.5 | F43: 0 | H43: 0 | J43: 0 | K43: 0 | L43: 0
A44: 7 | E44: 1.5 | F44: 0 | H44: 0 | J44: 0 | K44: 0 | L44: 0
A45: 8 | E45: 1.5 | F45: 0 | H45: 0 | J45: 0 | K45: 0 | L45: 0
A46: 9 | E46: 1.5 | F46: 0 | H46: 0 | J46: 0 | K46: 0 | L46: 0
A47: 7 | B47: All others | D47: 200 | E47: 1.5 | F47: 300
A48: =COUNTA(B38:B46)+A47 -> 11 | B48: Total per month | F48: =SUM(F38:F47) -> 885
D49: Estimated demand from commercial MSMEs | E49: kWh/day | F49: =F48/30 -> 29.5
A51: =IF(A48>'1 Demand households'!C14, "Too many MSMEs! Compare: 1 Demand households, socio-economic data!","") ->  | E51: =IF(A48>'1 Demand households'!C14, '1 Demand households'!C14,"") -> 
A53: P r o d u c t I v e MSMEs producing electricity for their businesses (data from individual assessment) | H53: Additional financial data for consideration | N53: Additional gen-set data for consideration
A54: # | B54: Name of MSME | C54: Business | D54: Present monthly fuel consumption | E54: Estimated gen-set efficiency | F54: Estimated monthly | H54: Fuel expenses | I54: Service maintenance repair | J54: Total gen-set expenses | K54: Projected cost of PV electricity | L54: Lower (higher) PV electricity cost/month | N54: Present gen-set specification | P54: Owner-ship | Q54: Loan finance of the gen-set | S54: Operation hours average per month
E55: kWh/litre | F55: electricity demand | H55: Fuel price ₦/litre | I55: average per month | J55: per month | K55: Tariff ₦/kWh | N55: kW | O55: KVA | P55: own / other | Q55: Y / N | R55: MM/YY final payment due
D56: Litre | E56: (range: 0.8-3.5) | F56: kWh | H56: =H36 -> 255 | I56: ₦ | J56: ₦ | K56: 200 | L56: ₦
A57: 1 | B57: 2 | C57: 3 | D57: 4 | E57: 5 | F57: 6 = 4 * 5 | H57: 7 | I57: 8 | J57: 9 = 7 + 8 | K57: 10 = 6*Tariff | L57: 11 = 9 - 10 | N57: 12 | O57: 13 | P57: 14 | Q57: 15 | R57: 16 | S57: 17
A58: 1 | B58: Abcd | C58: Mill | D58: 300 | E58: 2.7 | F58: =IF(OR(E58<0.8,E58>3.5),"<- Wrong data!",E58*D58) -> 810 | H58: =D58*H$56 -> 76500 | I58: 5000 | J58: =I58+H58 -> 81500 | K58: =$K$56*F58 -> 162000 | L58: =J58-K58 -> -80500
A59: 2 | B59: Efgh | C59: Mill | D59: 280 | E59: 2.7 | F59: 756 | H59: =D59*H$56 -> 71400 | I59: 2000 | J59: =I59+H59 -> 73400 | K59: 151200 | L59: -77800
A60: 3 | B60: Ijkl | C60: Welding | D60: 190 | E60: 2.4 | F60: 456 | H60: 48450 | I60: 2000 | J60: =I60+H60 -> 50450 | K60: 91200 | L60: -40750
A61: 4 | B61: Mnop | C61: Car repair | D61: 120 | E61: 2.4 | F61: 288 | H61: 30600 | I61: 2000 | J61: =I61+H61 -> 32600 | K61: 57600 | L61: -25000
A62: 5 | E62: 1.5 | F62: 0 | H62: 0 | J62: 0 | K62: 0 | L62: 0
A63: 6 | E63: 1.5 | F63: 0 | H63: 0 | J63: 0 | K63: 0 | L63: 0
A64: 7 | E64: 1.5 | F64: 0 | H64: 0 | J64: 0 | K64: 0 | L64: 0
A65: 8 | E65: 1.5 | F65: 0 | H65: 0 | J65: 0 | K65: 0 | L65: 0
A66: 9 | E66: 1.5 | F66: 0 | H66: 0 | J66: 0 | K66: 0 | L66: 0
A67: 7 | B67: All others | D67: 50 | E67: 1.5 | F67: 75
A68: =COUNTA(B58:B66)+A67 -> 11 | B68: Total per month | F68: =SUM(F58:F67) -> 2385
D69: Estimated demand from productive MSMEs | E69: kWh/day | F69: =F68/30 -> 79.5
A71: =IF(A68>'1 Demand households'!C15, "Too many MSMEs! Compare: 1 Demand households, socio-economic data!","") -> 
A73: P u b l I c demand | H73: Additional financial data for consideration | N73: Additional gen-set data for consideration
A74: # | B74: Name of MSME | C74: Business | D74: Present monthly fuel consumption | E74: Estimated gen-set efficiency | F74: Estimated monthly | H74: Fuel expenses | I74: Service maintenance repair | J74: Total gen-set expenses | K74: Projected cost of PV electricity | L74: Lower (higher) PV electricity cost/month | N74: Present gen-set specification | P74: Owner-ship | Q74: Loan finance of the gen-set | S74: Operation hours average per month
E75: kWh/litre | F75: electricity demand | H75: Fuel price ₦/litre | I75: average per month | J75: per month | K75: Tariff ₦/kWh | N75: Age years | O75: kW / KVA | P75: own / other | Q75: Y / N | R75: MM/YY final payment due
D76: Litre | E76: (range: 0.8-3.5) | F76: kWh | H76: =H36 -> 255 | I76: ₦ | J76: ₦ | K76: 200 | L76: ₦
A77: 1 | B77: 2 | C77: 3 | D77: 4 | E77: 5 | F77: 6 = 4 * 5 | H77: 7 | I77: 8 | J77: 9 = 7 + 8 | K77: 10 = 6*Tariff | L77: 11 = 9 - 10 | N77: 12 | O77: 13 | P77: 14 | Q77: 15 | R77: 16 | S77: 17
A78: 1 | B78: Abed | C78: School 1 | D78: 20 | E78: 1.5 | F78: =IF(OR(E78<0.8,E78>3.5),"<- Wrong data!",E78*D78) -> 30 | H78: =D78*H$76 -> 5100 | I78: 1000 | J78: =I78+H78 -> 6100 | K78: =$K$76*F78 -> 6000 | L78: =J78-K78 -> 100
A79: 2 | B79: Eight | C79: Street lamps | D79: 15 | E79: 1.5 | F79: 22.5 | H79: =D79*H$76 -> 3825 | J79: =I79+H79 -> 3825 | K79: 4500 | L79: -675
A80: 3 | B80: Jill | C80: Mosque | D80: 5 | E80: 1.5 | F80: 7.5 | H80: 1275 | J80: =I80+H80 -> 1275 | K80: 1500 | L80: -225
A81: 4 | B81: Mop | C81: Church | D81: 5 | E81: 1.5 | F81: 7.5 | H81: 1275 | J81: =I81+H81 -> 1275 | K81: 1500 | L81: -225
A82: 5 | E82: 1.5 | F82: 0 | H82: 0 | J82: 0 | K82: 0 | L82: 0
A83: 6 | E83: 1.5 | F83: 0 | H83: 0 | J83: 0 | K83: 0 | L83: 0
A84: 7 | E84: 1.5 | F84: 0 | H84: 0 | J84: 0 | K84: 0 | L84: 0
A85: 8 | E85: 1.5 | F85: 0 | H85: 0 | J85: 0 | K85: 0 | L85: 0
A86: 9 | E86: 1.5 | F86: 0 | H86: 0 | J86: 0 | K86: 0 | L86: 0
A87: 2 | B87: All others | D87: 9 | E87: 1.5 | F87: 13.5
A88: =COUNTA(B78:B86)+A87 -> 6 | B88: Total per month | F88: =SUM(F78:F87) -> 81
D89: Estimated demand from p u b l I c users | E89: kWh/day | F89: =F88/30 -> 2.7
A91: =IF(A88>'1 Demand households'!C16, "Too many units! Compare: 1 Demand households, socio-economic data!","") -> 
A99: DEMAND SURVEY QUESTIONNAIRE OUTLINE
A100: Suggestion for developers
D101: Units
A102: - General data
B103: Fuel price at location | D103: ₦/litre
B104: Projected electricity tariff | D104: ₦/kWh
A106: - Individual data
B107: Name | D107: Text
B108: Business | D108: Text
B109: Present fuel consumption/month | D109: Litre
B110: Estimated gen-set efficiency | D110: kWh/litre
B111: Service, maintenance, repair, average cost/month | D111: ₦
A113: - Gen-set assessment
B114: age | D114: years
B115: kW/KVA | D115: units
B116: ownership (own property, rented, other) | D116: p/r/o
B117: loan finance (Y/N) | D117: Y/N
B118: final loan service payment (MM/YY) | D118: MM/YY
B119: gen-set operation hours/month | D119: hours

Sheet 3 Losses
A1: 3 Losses
B3: The solar cells produce electricity. Some of this electricity is lost on its way to the consumer.
B4: The tables below serve to assess these system losses.
B5: Investors may invest in more panels to balance higher technical losses of inexpensive equipment.
B6: The panel efficiency, i.e. the percentage of irradiation converted into electricity, is rather irrelevant.
B8: The developer will have to prepare the data.
B9: Data to be entered in column E in orange cells
B10: Data transferred to Sheet "Data input and assessment" are yellow marked.
C12: Benchmarks | E12: Project
B14: System losses from panel to grid/power house exit
B15: Irradiance losses | C15: 3 - 7% | E15: 0.03
B16: Tilt of panels [close to equator, no hills] | C16: 0.1 | E16: 0.1
B17: Dust [guards as cleaners] | C17: 2 - 4% | E17: 0.02
B18: Solar inverters [high efficiency] | C18: 2 - 6% | E18: 0.04
B19: Temperature [moderate temperatures] | C19: 2 - 5% | E19: 0.03
B20: DC cables losses [from panel to power station/inverter] | C20: 1 - 3% | E20: 0.03
B21: Shadings [no shadings] | C21: 0 | E21: 0
B22: Others | C22: 0 | E22: 0
B23: Losses low | C23: 0.25 | E23: =SUM(E15:E22) -> 0.25 | F23: transferred to blue table "Losses" below
B24: Losses acceptable | C24: 25 - 35%
B25: Losses high | C25: > 35%
B27: System losses from battery operation
B28: Multitasker, electronic devices | C28: 0.03 | E28: 0.03
B29: Battery in- or converters [high efficiency] | C29: 6 - 15% | E29: 0.06
B30: DC cables losses [internal wiring] | C30: 1 - 3% | E30: 0.01
B31: Charge/discharge battery (Pb/lead acid: up to 30%; Li-on: 8%) | C31: 8 - 30% | E31: 0.15
B32: Others | C32: 0 | E32: 0
B33: Losses from lead acid battery operation, very low | C33: 0.25 | E33: =SUM(E28:E32) -> 0.25 | F33: transferred to blue table "Losses, summary" below
B34: Losses acceptable | C34: 25 - 35%
B35: Losses high | C35: > 35%
B37: System losses from power house exit to consumer meter
B38: AC cables losses [distribution lines, depending on length, diameter] | C38: 0.08 | E38: 0.08 | F38: for more see: | G38: http://photovoltaic-software.com/DC_AC_drop_voltage_energy_losses_calculator.php
B39: Loss due to system manipulation, non- or lost payment | C39: 0.02 | E39: 0.01
B40: Others | C40: 0 | E40: =C40 -> 0
B41: Losses low | C41: < 10% | E41: =SUM(E38:E40) -> 0.09 | F41: transferred to blue table "Losses, summary" below
B42: Losses acceptable | C42: 10 - 15%
B43: Losses high | C43: > 15%
B46: Losses, summary | C46: Losses | E46: Remaining | F46: Remaining
B47: calculated from the remainder | E47: daytime | F47: night
B48: Losses from panel to power house | C48: =E23 -> 0.25 | E48: =1-C48 -> 0.75 | F48: =1-C48 -> 0.75
B49: Losses from dis-/charging the battery (in/out) | C49: =E33 -> 0.25 | F49: =F48*(1-C49) -> 0.5625
B50: Losses from power house to customer meter | C50: =E41 -> 0.09 | E50: =E48*(1-C50) -> 0.6825 | F50: =F49*(1-C50) -> 0.511875
B52: Losses | E52: =1-E50 -> 0.3175 | F52: =1-F50 -> 0.488125 | G52: transferred to "Data input and assessment", Configuration
B55: Multiplier to balance seasonal irradiation deficits | E55: kWh/m2
B56: Annual irradiation according to location (see map) | E56: 1850
B57: Daily irradiation, lowest value (https://eosweb.larc.nasa.gov/sse/) | E57: 3.97
B58: Multiplier | E58: =(E56/365)/E57 -> 1.276698527 | F58: transferred to "Data input and assessment", configuration

Sheet 4 Other supporting data
A1: 4 Other supporting data
A2: This sheet shall support the assessment of transport cost.
A3: Recommendation: Enter data in worksheet "Data input and assessment" first.
A5: Data input cells
A6: Data from "Data input and assessment." | C6: alternatively direct data input
A8: Assessment of transport weight and volume of PV panels
A9: Panels
A10: PV capacity proposed by developer | B10: =+'Data input and assessment'!B67 -> 90.6 | C10: kWp | D10: =IF(B10-'Data input and assessment'!B67>2,"Data inconsistent",IF(B10-'Data input and assessment'!B67<-2,"Data inconsistent","")) -> 
A11: Panel name plate power rating | B11: 300 | C11: Wp | F11: Panel name plate:
A12: Number of panels | B12: =B10/(B11/1000) -> 302 | F12: Max. power: 300 W
A13: Panel size, approximately
A14: - Length | B14: 200 | C14: cm
A15: - Width | B15: 100 | C15: cm
A16: - Thickness | B16: 4.5 | C16: cm
A17: Volume, net | B17: =B12*B14*B15*B16/1000000 -> 27.18 | C17: m3
A18: Addition for palettes, cardboards | B18: 0.25
A19: Volume, gross | B19: =(1+B18)*B17 -> 33.975 | C19: m3 | D19: =IF(B19<B20,"Panels fit probably into one 20 ft container", "Probably, two 20 ft containers necessary for all panels") -> Panels fit probably into one 20 ft container
A20: Volume 20 ft container | B20: 38.5 | C20: m3
A21: Weight per panel | B21: 20 | C21: kg
A22: Weight all panels | B22: =B21*B12/1000 -> 6.04 | C22: ton
A23: Weight 20 ft container | B23: 2.4 | C23: ton
A24: Total panel transport weight, est. | B24: =B23+B22 -> 8.44 | C24: ton
A26: Assessment of transport weight of batteries
A27: Batteries
A28: Battery bank power (C10) | B28: ='Data input and assessment'!B74 -> 295.2 | C28: kWh | D28: =IF(B28-'Data input and assessment'!B74>5,"Data inconsistent",IF(B28-'Data input and assessment'!B74<-5,"Data inconsistent","")) -> 
A29: Weight, appr. | B29: 40 | C29: kg/kWh
A30: Total battery weight, est. | B30: =B29*B28/1000 -> 11.808 | C30: ton
A32: Assessment of transport weight of power lines
A33: Power lines, cables
A34: Aluminium, cut surface/section 50 mm2 | B34: 0.3 | C34: kg/m
A35: Cable length | B35: 3500 | C35: m | D35: =IF(($B$35+$B$37+$B$39)<>'Data input and assessment'!$B$149,"Correct total cable length difference:","") -> 
A36: Aluminium, 95 mm2 | B36: 0.5 | C36: kg/m | D36: =IF(($B$35+$B$37+$B$39)<>'Data input and assessment'!$B$149,"Total m here","") ->  | G36: =IF(($B$35+$B$37+$B$39)<>'Data input and assessment'!$B$149,($B$35+$B$37+$B$39),"") -> 
A37: Cable length | B37: 1100 | C37: m | D37: =IF(($B$35+$B$37+$B$39)<>'Data input and assessment'!$B$149,"Total m in 'Data input … ->B149'","") ->  | G37: =IF(($B$35+$B$37+$B$39)<>'Data input and assessment'!$B$149,'Data input and assessment'!$B$149,"") -> 
A38: Others: 120 mm2 | B38: 0.6 | C38: kg/m
A39: Cable length | B39: 500 | C39: m
A40: Total cable weight, est. | B40: =(B34*B35+B36*B37+B38*B39)/1000 -> 1.9 | C40: ton
A41: Non-insulated cables weigh less.
A43: Assessment of transport weight of electric poles
A44: Poles
A45: Steel-reinforced concrete poles, 8 m | B45: ='Data input and assessment'!B150 -> 80 | C45: pieces | D45: =IF(B45-'Data input and assessment'!B150>5,"Data inconsistent, see 'Data input …' B150",IF(B45-'Data input and assessment'!B150<-5,"Data inconsistent, see 'Data input …' B150","")) -> 
A46: Weight, appr. | B46: 700 | C46: kg
A47: Total pole weight, est. | B47: =B46*B45/1000 -> 56 | C47: ton
A50: Transport cost
A51: Panels | C51: 1000000
A52: Mounting structures | C52: 200000
A53: Batteries | C53: 1000000
A54: In-/converters, other electronic equipment | C54: 500000
A55: Power lines, cable | C55: 500000
A56: Poles | C56: 2000000
A57: Others
A58: Total cost of transport | B58: Naira | C58: =SUM(C51:C57) -> 5200000
A59: Total cost of transport | C59: =C58/'Data input and assessment'!$B$83 -> 14246.57534
A61: Transport cost in % of total investment | C61: =C58/'Data input and assessment'!B172 -> 0.0358868185
A64: Location
A65: Location of the mini-grid | B65: ='1 Demand households'!C10 -> < Name, LGA, State>
A66: Distance from port/Lagos to destination | B66: ='1 Demand households'!C19 -> 760 | C66: km
A67: Non-asphalted road | B67: ='1 Demand households'!C18 -> 6 | C67: km
